bitfinex-derivatives/quotes_SOLF0:USTF0_20250614
["timestamp","ask_amount","ask_price","bid_price","bid_amount"]
[1749902581749,0.04424428,145.88,145.87,8.98284594]
[1749902585046,0.04424428,145.88,145.87,2.13014594]
[1749902585752,0.04424428,145.88,145.87,8.98284594]
[1749902603569,4.428e-05,145.88,145.87,8.98284594]
[1749902611683,8.92,145.9,145.89,8.98194594]
[1749902614284,8.92,145.9,145.89,17.5197491]
[1749902615987,8.92,145.9,145.89,8.98194594]
[1749902616385,0.05022116,145.91,145.9,6.8513]
[1749902616584,0.05022116,145.91,145.9,51.04620815]
[1749902617282,0.05022116,145.91,145.9,42.50144594]
[1749902617981,0.05022116,145.91,145.9,51.04620815]
[1749902618188,0.05022116,145.91,145.9,42.50144594]
[1749902623985,0.05022116,145.91,145.9,40.3713]
[1749902626294,0.05022116,145.91,145.9,33.52]
[1749902627791,6.90112116,145.91,145.9,33.52]
[1749902628995,0.05022116,145.91,145.9,33.52]
[1749902629996,6.90112116,145.91,145.9,33.52]
[1749902632193,6.8517,145.9,145.88,6.8989727]
[1749902636300,2.1803671,145.91,145.88,0.0468727]
[1749902636500,2.13014594,145.89,145.87,33.52]
[1749902636700,6.8523,145.88,145.84,35.65014594]
[1749902636896,6.8523,145.88,145.85,2.13014594]
[1749902637296,8.98224594,145.89,145.86,6.8532]
[1749902637501,9.02797809,145.89,145.86,6.90129283]
[1749902638103,6.89783215,145.89,145.86,6.90129283]
[1749902638613,6.8523,145.88,145.86,6.90129283]
[1749902640206,6.8523,145.88,145.86,0.04809283]
[1749902640408,0.04573215,145.89,145.86,0.04809283]
[1749902640911,6.8526,145.88,145.86,0.04809283]
[1749902641508,6.8528,145.87,145.86,0.04809283]
[1749902644717,8.98294594,145.87,145.86,0.04809283]
[1749902649618,6.8528,145.87,145.86,0.04809283]
[1749902649807,8.98294594,145.87,145.86,0.04809283]
[1749902653623,8.98294594,145.87,145.86,9.283e-05]
[1749902660434,20.52294594,145.87,145.86,9.283e-05]
[1749902663340,18.3928,145.87,145.86,9.283e-05]
[1749902663635,20.52294594,145.87,145.86,9.283e-05]
[1749902665039,18.3928,145.87,145.86,9.283e-05]
[1749902665230,20.52294594,145.87,145.86,9.283e-05]
[1749902666930,18.3928,145.87,145.86,9.283e-05]
[1749902669338,11.54,145.87,145.86,2.13023877]
[1749902670039,11.54,145.87,145.86,8.98353877]
[1749902672549,11.54,145.87,145.86,6.85339283]
[1749902672842,11.54,145.87,145.86,8.98353877]
[1749902674537,0.04573215,145.89,145.88,6.8524]
[1749902674737,0.04573215,145.89,145.88,8.98254594]
[1749902677047,0.04573215,145.89,145.87,6.8526]
[1749902677249,0.04573215,145.89,145.87,2.13014594]
[1749902678140,6.8527,145.88,145.87,2.13014594]
[1749902678337,6.8527,145.88,145.86,2.13023877]
[1749902678952,6.8528,145.87,145.86,2.13023877]
[1749902679249,6.8528,145.87,145.86,9.283e-05]
[1749902682443,8.98294594,145.87,145.86,9.283e-05]
[1749902701465,42.50294594,145.87,145.86,9.283e-05]
[1749902711270,40.3728,145.87,145.86,9.283e-05]
[1749902711467,42.50294594,145.87,145.86,9.283e-05]
[1749902716674,47.2312218,145.87,145.86,9.283e-05]
[1749902716977,47.23122456,145.87,145.86,9.283e-05]
[1749902717671,42.50294594,145.87,145.86,9.283e-05]
[1749902717866,47.23210358,145.87,145.86,9.283e-05]
[1749902718066,47.23228523,145.87,145.86,9.283e-05]
[1749902718574,47.23227025,145.87,145.86,9.283e-05]
[1749902718773,47.23244193,145.87,145.86,9.283e-05]
[1749902719173,47.23244055,145.87,145.86,9.283e-05]
[1749902719377,47.23244192,145.87,145.86,9.283e-05]
[1749902719677,47.23244054,145.87,145.86,9.283e-05]
[1749902719884,47.22799774,145.87,145.86,9.283e-05]
[1749902720685,42.50294594,145.87,145.86,9.283e-05]
[1749902721080,47.23177058,145.87,145.86,9.283e-05]
[1749902721381,47.23173862,145.87,145.86,9.283e-05]
[1749902721576,42.50294594,145.87,145.86,9.283e-05]
[1749902721772,47.23394994,145.87,145.86,9.283e-05]
[1749902722777,47.23397887,145.87,145.86,9.283e-05]
[1749902722978,42.50294594,145.87,145.86,9.283e-05]
[1749902723179,47.23395435,145.87,145.86,9.283e-05]
[1749902723375,47.23619583,145.87,145.86,9.283e-05]
[1749902723584,47.23619636,145.87,145.86,9.283e-05]
[1749902723786,47.23619774,145.87,145.86,9.283e-05]
[1749902724676,47.23792042,145.87,145.86,9.283e-05]
[1749902724878,47.23785496,145.87,145.86,9.283e-05]
[1749902725282,42.50294594,145.87,145.86,9.283e-05]
[1749902725577,47.23999268,145.87,145.86,9.283e-05]
[1749902725791,47.24120216,145.87,145.86,9.283e-05]
[1749902726089,45.11105622,145.87,145.86,9.283e-05]
[1749902726482,45.11178882,145.87,145.86,9.283e-05]
[1749902726983,45.11272992,145.87,145.86,9.283e-05]
[1749902727386,45.1127014,145.87,145.86,9.283e-05]
[1749902728089,45.11355407,145.87,145.86,9.283e-05]
[1749902728492,40.3728,145.87,145.86,9.283e-05]
[1749902728787,45.1152253,145.87,145.86,9.283e-05]
[1749902728992,40.3728,145.87,145.86,9.283e-05]
[1749902729495,45.1152426,145.87,145.86,9.283e-05]
[1749902729686,45.11519069,145.87,145.86,9.283e-05]
[1749902729991,45.11554377,145.87,145.86,9.283e-05]
[1749902730893,45.12018819,145.87,145.86,9.283e-05]
[1749902731495,40.3728,145.87,145.86,9.283e-05]
[1749902731794,45.12038741,145.87,145.86,9.283e-05]
[1749902731995,40.3728,145.87,145.86,9.283e-05]
[1749902732493,45.1199989,145.87,145.86,9.283e-05]
[1749902732794,45.11996332,145.87,145.86,9.283e-05]
[1749902732989,40.3728,145.87,145.86,9.283e-05]
[1749902733187,45.11955625,145.87,145.86,9.283e-05]
[1749902733391,45.11955612,145.87,145.86,9.283e-05]
[1749902733593,47.68037536,145.87,145.86,9.283e-05]
[1749902733788,45.11957421,145.87,145.86,9.283e-05]
[1749902733986,46.75138613,145.87,145.86,9.283e-05]
[1749902734188,54.05883668,145.87,145.86,9.283e-05]
[1749902734389,54.05842378,145.87,145.86,9.283e-05]
[1749902734590,54.05842249,145.87,145.86,9.283e-05]
[1749902734789,47.67883155,145.87,145.86,9.283e-05]
[1749902734987,47.67885087,145.87,145.86,9.283e-05]
[1749902735192,47.67879938,145.87,145.86,9.283e-05]
[1749902735390,45.11852304,145.87,145.86,9.283e-05]
[1749902735697,42.9330379,145.87,145.86,9.283e-05]
[1749902735995,47.67876651,145.87,145.86,9.283e-05]
[1749902736197,47.67875995,145.87,145.86,9.283e-05]
[1749902736497,45.11404699,145.87,145.86,9.283e-05]
[1749902736697,54.07502621,145.87,145.86,9.283e-05]
[1749902736895,51.51478483,145.87,145.86,9.283e-05]
[1749902737197,51.51481262,145.87,145.86,9.283e-05]
[1749902737496,49.3337832,145.87,145.86,9.283e-05]
[1749902737697,54.07041622,145.87,145.86,9.283e-05]
[1749902737996,51.51479829,145.87,145.86,9.283e-05]
[1749902738194,49.32918731,145.87,145.86,9.283e-05]
[1749902738393,54.07042146,145.87,145.86,9.283e-05]
[1749902738696,54.07037956,145.87,145.86,9.283e-05]
[1749902738898,54.0703803,145.87,145.86,9.283e-05]
[1749902739294,54.07037994,145.87,145.86,9.283e-05]
[1749902739494,54.07037856,145.87,145.86,9.283e-05]
[1749902739706,54.07033873,145.87,145.86,9.283e-05]
[1749902739893,54.07030761,145.87,145.86,9.283e-05]
[1749902740094,54.07037813,145.87,145.86,9.283e-05]
[1749902740398,54.07039664,145.87,145.86,9.283e-05]
[1749902740598,54.07039774,145.87,145.86,9.283e-05]
[1749902740800,54.07032485,145.87,145.86,9.283e-05]
[1749902741002,49.32916493,145.87,145.86,9.283e-05]
[1749902741196,54.06802322,145.87,145.86,9.283e-05]
[1749902741397,54.0680212,145.87,145.86,9.283e-05]
[1749902741695,49.32909485,145.87,145.86,9.283e-05]
[1749902741894,54.06793257,145.87,145.86,9.283e-05]
[1749902742195,51.51240366,145.87,145.86,9.283e-05]
[1749902742401,49.32909485,145.87,145.86,9.283e-05]
[1749902742602,54.06796534,145.87,145.86,9.283e-05]
[1749902742797,54.06797119,145.87,145.86,9.283e-05]
[1749902742996,46.77356594,145.87,145.86,9.283e-05]
[1749902743192,49.32910036,145.87,145.86,9.283e-05]
[1749902743394,54.06758993,145.87,145.86,9.283e-05]
[1749902743593,54.06725581,145.87,145.86,9.283e-05]
[1749902743793,54.06723114,145.87,145.86,9.283e-05]
[1749902743994,49.3271855,145.87,145.86,9.283e-05]
[1749902744190,49.32732737,145.87,145.86,9.283e-05]
[1749902744389,54.06579416,145.87,145.86,9.283e-05]
[1749902744796,54.06575218,145.87,145.86,9.283e-05]
[1749902744995,51.51197953,145.87,145.86,9.283e-05]
[1749902745194,54.06575455,145.87,145.86,9.283e-05]
[1749902745403,54.06570656,145.87,145.86,9.283e-05]
[1749902745608,47.66467423,145.87,145.86,9.283e-05]
[1749902745803,47.66416424,145.87,145.86,9.283e-05]
[1749902746198,49.79586047,145.87,145.86,9.283e-05]
[1749902746504,49.79686072,145.87,145.86,9.283e-05]
[1749902746702,45.05897659,145.87,145.86,9.283e-05]
[1749902746907,49.78927305,145.87,145.86,9.283e-05]
[1749902747200,13.7066,145.86,145.79,2.13269648]
[1749902747405,2.13269648,145.83,145.79,2.13269648]
[1749902747607,6.8561,145.8,145.79,2.13269648]
[1749902748096,6.8566,145.79,145.78,0.04450761]
[1749902750809,6.8585,145.75,145.73,37.9482]
[1749902751003,6.8585,145.75,145.74,2.13269648]
[1749902751205,6.8585,145.75,145.73,40.08089648]
[1749902752004,6.90877841,145.75,145.73,40.12988664]
[1749902755511,6.8589,145.74,145.73,40.12988664]
[1749902755905,6.8589,145.74,145.73,2.28249016]
[1749902756111,6.8589,145.74,145.73,0.04899016]
[1749902765217,6.90897841,145.75,145.73,2.18168664]
[1749902765427,0.05027841,145.75,145.74,2.13269648]
[1749902765613,10.79,145.8,145.74,2.13269648]
[1749902765919,10.79,145.8,145.78,2.13269648]
[1749902766220,6.8572,145.78,145.77,2.13269648]
[1749902766521,10.79,145.8,145.77,2.13269648]
[1749902766522,6.90529302,145.79,145.77,2.13269648]
[1749902767922,6.857,145.78,145.77,2.13269648]
[1749902768711,6.8575,145.77,145.76,2.17724765]
[1749902773029,6.8575,145.77,145.76,0.04455117]
[1749902773423,8.99019648,145.77,145.76,0.04455117]
[1749902773822,8.99019648,145.77,145.76,5.117e-05]
[1749902775227,6.8575,145.77,145.76,5.117e-05]
[1749902781831,6.8573,145.78,145.76,5.117e-05]
[1749902782141,0.04849302,145.79,145.76,6.85775117]
[1749902782333,6.8573,145.78,145.76,5.117e-05]
[1749902784538,6.8573,145.78,145.76,6.85795117]
[1749902785535,6.8575,145.77,145.76,5.117e-05]
[1749902802347,6.8573,145.78,145.76,5.117e-05]
[1749902802845,6.8575,145.78,145.76,5.117e-05]
[1749902803243,6.8575,145.78,145.76,8.9915549]
[1749902803449,0.04849302,145.79,145.77,2.13350373]
[1749902803942,6.8571,145.78,145.77,2.13350373]
[1749902804141,0.04849302,145.79,145.77,2.13350373]
[1749902804447,0.04849302,145.79,145.77,8.99090373]
[1749902804851,0.04849302,145.79,145.78,8.99050373]
[1749902805246,6.90509302,145.79,145.76,3.33259109]
[1749902805446,6.90509302,145.79,145.77,6.8572]
[1749902806250,6.8571,145.78,145.76,10.19039109]
[1749902806752,0.04849302,145.79,145.76,10.19039109]
[1749902806951,0.04849302,145.79,145.76,5.117e-05]
[1749902807654,6.8575,145.77,145.76,5.117e-05]
[1749902813055,0.04849302,145.79,145.76,5.117e-05]
[1749902814659,6.8575,145.77,145.76,5.117e-05]
[1749902819964,43.89003992,145.77,145.76,5.117e-05]
[1749902822360,48.61168601,145.77,145.76,5.117e-05]
[1749902822561,43.89003992,145.77,145.76,5.117e-05]
[1749902823064,48.61165687,145.77,145.76,5.117e-05]
[1749902823267,48.6115743,145.77,145.76,5.117e-05]
[1749902823763,43.89003992,145.77,145.76,5.117e-05]
[1749902826172,41.73107637,145.77,145.69,33.7]
[1749902826465,41.73107637,145.77,145.67,15.39348074]
[1749902826466,3.33253992,145.73,145.66,118.66709894]
[1749902826661,6.8615,145.69,145.66,110.1356182]
[1749902826864,4.6474,145.72,145.66,110.1356182]
[1749902827169,0.05031192,145.7,145.68,0.05115379]
[1749902827365,6.8613,145.69,145.68,0.05115379]
[1749902829658,6.8628,145.66,145.63,40.5639]
[1749902830570,6.91387603,145.66,145.63,40.61020316]
[1749902831074,0.05107603,145.66,145.64,6.8636]
[1749902831670,6.91377603,145.66,145.63,40.61020316]
[1749902832266,6.8636,145.65,145.63,33.74630316]
[1749902832665,6.8636,145.65,145.63,0.04630316]
[1749902833968,0.05107603,145.66,145.63,0.04630316]
[1749902833969,6.8636,145.64,145.63,0.04630316]
[1749902837570,3.33253992,145.65,145.59,33.72]
[1749902837781,41.47083992,145.65,145.59,33.72]
[1749902838476,0.04991347,145.63,145.61,0.05123446]
[1749902839077,6.91431347,145.63,145.61,0.05123446]
[1749902840580,6.8646,145.62,145.61,0.05123446]
[1749902843175,6.8663,145.59,145.56,33.72]
[1749902843571,3.33253992,145.64,145.56,37.05253992]
[1749902843776,6.8658,145.6,145.57,6.8669]
[1749902843972,6.8658,145.6,145.56,37.05253992]
[1749902844171,6.8658,145.6,145.57,0.04923641]
[1749902844377,0.05163071,145.59,145.57,0.04923641]
[1749902844782,0.05163071,145.59,145.57,6.91593641]
[1749902846378,0.05163071,145.59,145.58,10.19903992]
[1749902847690,0.05163071,145.59,145.58,3.33253992]
[1749902848585,0.05163071,145.59,145.58,10.19903992]
[1749902849482,0.05163071,145.59,145.58,3.33253992]
[1749902849886,6.91763071,145.59,145.58,3.33253992]
[1749902850187,0.05163071,145.59,145.58,3.33253992]
[1749902850581,0.05163071,145.59,145.58,10.19903992]
[1749902860195,0.05163071,145.59,145.57,0.04923641]
[1749902860695,6.91793071,145.59,145.57,0.04923641]
[1749902861288,6.91793071,145.59,145.57,6.91603641]
[1749902861997,0.05163071,145.59,145.57,6.91603641]
[1749902863502,6.91763071,145.59,145.57,6.91603641]
[1749902864297,0.05163071,145.59,145.58,6.8665]
[1749902870009,14.7543,145.63,145.57,7.83657633]
[1749902870010,7.89,145.63,145.57,7.83657633]
[1749902870203,14.7542,145.63,145.61,3.33253992]
[1749902870605,14.7542,145.63,145.61,10.19723992]
[1749902870816,7.89,145.63,145.61,3.33253992]
[1749902871112,7.89,145.63,145.61,3.37965228]
[1749902871113,7.93545091,145.63,145.61,3.37965228]
[1749902871907,7.93545091,145.63,145.62,6.8646]
[1749902872113,0.04545091,145.63,145.62,6.8646]
[1749902881220,6.8625,145.67,145.65,6.863]
[1749902882219,6.91144579,145.67,145.65,6.90969138]
[1749902883312,0.04894579,145.67,145.66,6.8627]
[1749902884523,0.04894579,145.67,145.66,10.19523992]
[1749902885520,2.2685,145.7,145.68,6.8616]
[1749902886422,9.1293,145.7,145.68,6.8616]
[1749902886621,9.17433553,145.7,145.68,6.91059465]
[1749902887420,9.17433553,145.7,145.68,0.04899465]
[1749902891024,9.17433553,145.7,145.68,6.91069465]
[1749902891522,6.8613,145.69,145.68,0.04899465]
[1749902892720,6.8622,145.67,145.66,15.0]
[1749902892925,6.8622,145.67,145.66,11.3961]
[1749902893117,6.8622,145.67,145.66,7.7923]
[1749902903127,6.8622,145.67,145.66,4.1887]
[1749902921041,15.2622,145.67,145.66,4.1887]
[1749902921345,17.3996085,145.67,145.66,4.1887]
[1749902923845,6.8627,145.66,145.65,0.04920109]
[1749902925244,6.8636,145.64,145.63,34.0]
[1749902926744,10.58626443,145.67,145.62,2.18670899]
[1749902926745,6.8641,145.63,145.62,0.04930049]
[1749902927248,9.0015085,145.63,145.62,0.04930049]
[1749902928745,6.8641,145.63,145.62,0.04930049]
[1749902930046,9.0015085,145.63,145.62,0.04930049]
[1749902935152,2.1374085,145.63,145.58,2.1374085]
[1749902935347,2.1374085,145.62,145.58,2.1374085]
[1749902935746,6.8658,145.6,145.58,2.1374085]
[1749902936145,6.9139387,145.6,145.58,2.18555215]
[1749902939248,6.866,145.59,145.58,2.18555215]
[1749902939453,0.0481387,145.6,145.58,0.04814365]
[1749902940756,6.9139387,145.6,145.58,0.04814365]
[1749902942148,6.9139387,145.6,145.58,2.18555215]
[1749902943756,6.866,145.59,145.58,2.18555215]
[1749902944362,6.9139387,145.6,145.58,2.18555215]
[1749902944960,6.9139387,145.6,145.58,9.05195215]
[1749902948154,6.9139387,145.6,145.58,6.91454365]
[1749902950062,6.9139387,145.6,145.58,9.05195215]
[1749902951068,0.0481387,145.6,145.59,6.866]
[1749902951276,35.9974085,145.66,145.59,2.1374085]
[1749902951568,8.4,145.67,145.65,2.1374085]
[1749902951769,8.4,145.67,145.66,2.1374085]
[1749902952069,8.4,145.67,145.64,35.8374085]
[1749902952476,6.863,145.66,145.64,35.8863336]
[1749902953278,15.30889893,145.67,145.64,40.6125251]
[1749902960986,6.8629,145.66,145.64,40.6125251]
[1749902961886,6.8629,145.66,145.64,33.7489251]
[1749902962090,6.8632,145.65,145.64,33.7489251]
[1749902962789,6.8632,145.65,145.64,0.0489251]
[1749902971483,0.04639893,145.67,145.64,0.0489251]
[1749902972393,6.90889893,145.67,145.64,6.9122251]
[1749902972588,0.04639893,145.67,145.64,6.9122251]
[1749902973180,6.863,145.66,145.64,6.9122251]
[1749902973990,6.863,145.66,145.64,0.0489251]
[1749902975793,6.8632,145.65,145.64,0.0489251]
[1749902978089,9.00023304,145.65,145.64,0.0489251]
[1749902978291,2.13703304,145.65,145.58,35.75703304]
[1749902978489,2.13703304,145.61,145.58,33.62]
[1749902978998,6.8658,145.6,145.58,33.62]
[1749902979299,6.91849224,145.6,145.58,33.6646207]
[1749902980196,6.866,145.59,145.58,33.6646207]
[1749902983395,6.91849224,145.6,145.58,33.6646207]
[1749902983592,0.05269224,145.6,145.58,33.6646207]
[1749902984601,6.91849224,145.6,145.58,33.6646207]
[1749902990506,6.91849224,145.6,145.58,40.5310207]
[1749902992309,0.05269224,145.6,145.58,40.5310207]
[1749902993204,0.05269224,145.6,145.59,6.866]
[1749902993410,0.05269224,145.6,145.58,33.6646207]
[1749902993910,0.05269224,145.6,145.58,40.5308207]
[1749902997508,0.05269224,145.6,145.59,6.866]
[1749902997710,33.62,145.65,145.58,33.6646207]
[1749902997918,7.87916223,145.66,145.58,33.6646207]
[1749902998215,6.8641,145.64,145.61,6.8649]
[1749902998815,0.04804017,145.64,145.61,6.91529779]
[1749902999118,6.8641,145.63,145.61,6.91529779]
[1749903001817,0.04804017,145.64,145.62,35.77791024]
[1749903002015,0.04804017,145.64,145.63,2.13791024]
[1749903002818,0.04804017,145.64,145.62,35.77791024]
[1749903003212,0.04804017,145.64,145.62,33.64]
[1749903004016,6.8641,145.63,145.62,33.64]
[1749903005421,6.91184017,145.64,145.62,33.64]
[1749903006321,0.04804017,145.64,145.62,33.64]
[1749903006918,0.04804017,145.64,145.62,40.5044]
[1749903007621,6.91174017,145.64,145.62,40.5044]
[1749903010530,0.04804017,145.64,145.62,40.5044]
[1749903011123,6.91164017,145.64,145.62,40.5044]
[1749903013935,6.91164017,145.64,145.62,33.64]
[1749903014137,6.8641,145.63,145.62,33.64]
[1749903014339,0.04804017,145.64,145.62,33.64]
[1749903014729,6.91194017,145.64,145.62,33.64]
[1749903016339,6.91194017,145.64,145.62,40.5046]
[1749903017139,6.8641,145.63,145.62,33.64]
[1749903022438,6.8646,145.62,145.61,0.05039779]
[1749903025247,9.00358251,145.62,145.61,0.05039779]
[1749903034751,6.8646,145.62,145.61,0.05039779]
[1749903036352,9.00358251,145.62,145.61,0.05039779]
[1749903039150,6.8664,145.59,145.56,35.75898251]
[1749903039347,2.13898251,145.61,145.56,35.75898251]
[1749903039551,2.13898251,145.61,145.56,42.62618251]
[1749903039753,6.8663,145.59,145.56,42.62618251]
[1749903040459,6.91237851,145.59,145.56,42.67208798]
[1749903040658,6.91237851,145.59,145.57,2.13898251]
[1749903041261,6.91237851,145.59,145.57,9.00588251]
[1749903041459,0.04607851,145.59,145.58,2.13898251]
[1749903041856,0.04607851,145.59,145.58,9.00548251]
[1749903048764,6.91207851,145.59,145.57,2.13898251]
[1749903050068,6.91207851,145.59,145.57,9.00578251]
[1749903053271,6.91207851,145.59,145.57,6.8668]
[1749903053464,6.91207851,145.59,145.57,9.00578251]
[1749903055472,6.91207851,145.59,145.57,6.8668]
[1749903057175,6.8667,145.58,145.56,35.80488798]
[1749903057475,2.13898251,145.57,145.56,0.04590547]
[1749903057866,9.00588251,145.57,145.56,5.47e-06]
[1749903058873,13.70014527,145.57,145.56,5.47e-06]
[1749903059074,13.70014134,145.57,145.56,5.47e-06]
[1749903059276,9.00588251,145.57,145.56,5.47e-06]
[1749903059572,13.69929303,145.57,145.56,5.47e-06]
[1749903059967,6.8697,145.52,145.5,33.62]
[1749903060367,2.13898251,145.53,145.5,33.62]
[1749903060767,2.13898251,145.53,145.48,11.22438251]
[1749903060768,2.13898251,145.52,145.48,2.13898251]
[1749903060972,0.0520227,145.51,145.49,0.05036955]
[1749903061168,6.8702,145.5,145.49,0.05036955]
[1749903061575,0.0520227,145.51,145.49,0.05036955]
[1749903063378,0.0520227,145.51,145.5,6.8702]
[1749903064673,0.0520227,145.51,145.49,0.05036955]
[1749903065274,6.8702,145.5,145.49,0.05036955]
[1749903065786,0.0520227,145.51,145.49,0.05036955]
[1749903066480,0.0520227,145.51,145.49,6.92096955]
[1749903066975,6.9218227,145.51,145.49,0.05036955]
[1749903068071,0.0520227,145.51,145.49,6.92106955]
[1749903068474,0.0520227,145.51,145.49,0.05036955]
[1749903070484,6.9222227,145.51,145.49,0.05036955]
[1749903071174,6.8702,145.5,145.49,0.05036955]
[1749903073487,0.0520227,145.51,145.49,0.05036955]
[1749903076181,6.8702,145.5,145.49,0.05036955]
[1749903080080,6.9219227,145.51,145.49,0.05036955]
[1749903080884,6.8702,145.5,145.49,0.05036955]
[1749903083982,6.9219227,145.51,145.49,0.05036955]
[1749903086478,0.0520227,145.51,145.49,0.05036955]
[1749903087082,0.0520227,145.51,145.5,6.8702]
[1749903088988,0.0520227,145.51,145.49,6.92086955]
[1749903089788,6.9218227,145.51,145.49,6.92086955]
[1749903090192,6.8702,145.5,145.49,0.05036955]
[1749903091091,0.0520227,145.51,145.49,0.05036955]
[1749903091689,0.0520227,145.51,145.49,6.92066955]
[1749903091988,0.0520227,145.51,145.49,0.05036955]
[1749903092694,6.9218227,145.51,145.49,0.05036955]
[1749903093392,6.8702,145.5,145.49,0.05036955]
[1749903097295,0.0520227,145.51,145.49,6.92076955]
[1749903097686,0.0520227,145.51,145.49,0.05036955]
[1749903098696,6.8702,145.5,145.49,0.05036955]
[1749903101691,15.2202,145.5,145.49,0.05036955]
[1749903122104,6.8712,145.48,145.47,33.64]
[1749903126820,6.8708,145.49,145.47,33.64]
[1749903127914,10.49219569,145.5,145.47,35.78219569]
[1749903127915,8.35,145.5,145.47,35.78219569]
[1749903128116,8.35,145.5,145.47,44.35327805]
[1749903128314,8.35,145.5,145.47,35.78219569]
[1749903128521,8.35,145.5,145.47,44.35327805]
[1749903129322,8.35,145.5,145.47,44.35265288]
[1749903129625,15.2205,145.5,145.47,51.22405288]
[1749903130115,6.8707,145.49,145.47,44.35265288]
[1749903130311,6.8707,145.49,145.47,33.64]
[1749903131723,17.36197052,145.5,145.47,40.5114]
[1749903131922,17.36197052,145.5,145.47,49.08248236]
[1749903132424,17.36197052,145.5,145.47,40.5114]
[1749903132926,6.8707,145.49,145.47,40.5114]
[1749903133120,10.49157052,145.5,145.47,49.08248236]
[1749903133524,6.8708,145.49,145.47,49.08248236]
[1749903133724,10.49157052,145.5,145.47,49.08248236]
[1749903135720,6.8707,145.49,145.47,49.08248236]
[1749903136926,17.36197052,145.5,145.47,49.08248236]
[1749903137121,8.35,145.5,145.48,6.8711]
[1749903137424,8.35,145.5,145.47,42.21108236]
[1749903137625,8.35,145.5,145.48,6.8709]
[1749903138721,8.35,145.5,145.49,6.8707]
[1749903139325,8.35,145.5,145.48,6.8709]
[1749903139721,8.35,145.5,145.47,42.21108236]
[1749903140627,8.35,145.5,145.49,6.8707]
[1749903140821,4.00899373,145.5,145.49,15.44178236]
[1749903141221,4.00899373,145.5,145.49,17.58335288]
[1749903141523,4.00899373,145.5,145.49,17.58231186]
[1749903142531,4.00899373,145.5,145.49,9.0112295]
[1749903143824,0.0520227,145.51,145.5,6.8702]
[1749903144130,0.0520227,145.51,145.5,9.0107295]
[1749903144633,0.0520227,145.51,145.5,2.1405295]
[1749903144823,0.0520227,145.51,145.49,17.61407714]
[1749903145134,0.0520227,145.51,145.49,10.74347714]
[1749903145529,0.0520227,145.51,145.49,17.61397714]
[1749903145733,6.9220227,145.51,145.49,2.1742052]
[1749903145924,6.9220227,145.51,145.49,0.0336757]
[1749903146729,0.0520227,145.51,145.49,6.9043757]
[1749903147231,6.9218227,145.51,145.49,0.0336757]
[1749903149333,6.9218227,145.51,145.49,6.9042757]
[1749903150332,6.8702,145.5,145.49,0.0336757]
[1749903151333,9.0107295,145.5,145.49,0.0336757]
[1749903151529,6.8702,145.5,145.49,0.0336757]
[1749903158445,9.0624522,145.51,145.49,0.0336757]
[1749903159238,6.8702,145.5,145.49,0.0336757]
[1749903159836,9.0107295,145.5,145.49,0.0336757]
[1749903160334,9.0624522,145.51,145.49,0.0336757]
[1749903161140,6.8702,145.5,145.49,0.0336757]
[1749903161337,9.0107295,145.5,145.49,0.0336757]
[1749903161545,2.1405295,145.5,145.44,8.56927194]
[1749903161839,9.0131295,145.45,145.43,42.54927194]
[1749903162143,6.873,145.44,145.43,33.98]
[1749903162346,2.1405295,145.45,145.43,33.98]
[1749903162546,2.18902869,145.45,145.43,33.98]
[1749903162845,6.873,145.44,145.43,33.98]
[1749903166545,6.92119919,145.45,145.43,33.98]
[1749903168047,6.873,145.44,145.43,33.98]
[1749903169149,0.04849919,145.45,145.43,33.98]
[1749903169850,0.04849919,145.45,145.43,40.8534]
[1749903170149,0.04849919,145.45,145.43,33.98]
[1749903171143,0.04849919,145.45,145.43,40.8534]
[1749903171543,6.8731,145.44,145.43,33.98]
[1749903171752,0.04849919,145.45,145.43,33.98]
[1749903172247,6.92129919,145.45,145.43,33.98]
[1749903175156,6.873,145.44,145.43,33.98]
[1749903175358,0.04849919,145.45,145.43,33.98]
[1749903175655,6.92129919,145.45,145.43,40.8534]
[1749903175955,0.04849919,145.45,145.43,40.8534]
[1749903176853,6.92119919,145.45,145.43,33.98]
[1749903178750,6.873,145.44,145.43,33.98]
[1749903179060,0.04849919,145.45,145.43,33.98]
[1749903179360,6.92129919,145.45,145.43,33.98]
[1749903180364,6.873,145.44,145.43,33.98]
[1749903182658,0.04849919,145.45,145.43,40.8533]
[1749903182860,0.04849919,145.45,145.43,33.98]
[1749903183255,0.04849919,145.45,145.44,9.01552716]
[1749903183656,0.04849919,145.45,145.44,6.873]
[1749903189662,0.04849919,145.45,145.43,40.8532]
[1749903190068,6.92119919,145.45,145.43,40.8532]
[1749903190870,0.04849919,145.45,145.43,40.8532]
[1749903196682,0.04849919,145.45,145.44,6.873]
[1749903198177,0.04849919,145.45,145.43,40.8533]
[1749903199076,6.92129919,145.45,145.43,33.98]
[1749903199778,6.92129919,145.45,145.43,40.8534]
[1749903200374,0.04849919,145.45,145.43,40.8534]